Cogmind - Beta 16 @@@ ROGUE MODE // 2026.01.15 @ 14:38:52 Player: leto Result: Destroyed by S-43 Plague with Heavy Machine Gun Performance ------------- Evolutions (9) 4500 Regions Visited (25) 5000 Robots Destroyed (170) 850 Value Destroyed (4530) 4530 Prototype IDs (91) 1820 Alien Tech Used (2) 400 Bonus (2201) 2201 TOTAL SCORE: 19301 Bonus ------- Triggered Max Security 1000 High Alert Combat Kills 144 Follower Combat Kills 157 Aligned with FarCom 300 Met Data Miner 300 Met Zhirov 300 Cogmind --------- Core Integrity 0/1600 Matter 45/300 Energy 150/150 System Corruption 30% Temperature Cool (0) Movement Flying (40) Location -1/Access Parts ------- > --- POWER (2) -------- Micro Antimatter Reactor > --- PROPULSION (6) --- Field Propulsion Array > --- UTILITY (15) ----- (None) > --- WEAPON (2) ------- Ionic Axe > --- INVENTORY (5) ---- Gamma Bomb Array Peak State ------------ > --- POWER ------------ Light Quantum Reactor Light Quantum Reactor > --- PROPULSION ------- Impulse Thruster Field Propulsion Array Field Propulsion Array Diametric Drive > --- UTILITY ---------- Advanced Weight Redist. System Advanced Sensor Array Long-range Sensor Array Advanced Signal Interpreter Advanced Signal Interpreter Advanced Terrain Scanner Graphene Brace System Shield Improved Recalibrator Improved Recalibrator Improved Recalibrator > --- WEAPON ----------- Advanced Datajack Ionic Axe > --- INVENTORY -------- Micro Antimatter Reactor Field Propulsion Array Ragnarok Missile Launcher Ionic Axe [Rating: 136] Favorites ----------- Power Micro Fission Core Engine Light Deuterium Engine Power Core Micro Fission Core Reactor Light Quantum Reactor Propulsion Cooled VTOL Module Treads Light Treads Hover Unit Aerolev Unit Flight Unit Cooled VTOL Module Utility Hacking Suite Device Improved Terrain Scanner Storage Medium Storage Unit Processor Advanced Terrain Scan Processor Hackware Hacking Suite Protection Hardened Light Armor Plating Weapon Longsword +1 Energy Gun Arc Projector Energy Cannon Advanced Beam Cannon Ballistic Gun Assault Rifle Launcher Mini Grenade Launcher Special Weapon Molecular Deconstructor Impact Weapon Gravity Flail Slashing Weapon Longsword +1 Special Melee Weapon Improved Datajack Build | -11 -10 -10 -10 -9 -8 -7 -6 -6 -6 -6 -5 -5 -5 -5 -5 -5 -5 -4 -4 -4 -4 -3 -2 -2 -1 ------- Run | Yrd Mat Min Exi Min Mat Fac Fac Low Low Dat Pro Fac Was Fac Upp Upp Zhi Pro Fac Was Fac Res Res Tes Acc Slots Evolved 18 | . . . . . 4 2 2 . . . . 2 . . . . . . 2 . . 2 2 . 2 Power 1 | . . . . . . . . . . . . 1 . . . . . . . . . . . . . Propulsion 4 | . . . . . 2 . 1 . . . . . . . . . . . . . . . 1 . . Utility 13 | . . . . . 2 2 1 . . . . 1 . . . . . . 2 . . 2 1 . 2 Weapon . | . . . . . . . . . . . . . . . . . . . . . . . . . . Parts Attached 223 | 7 9 . 1 . 41 30 7 1 . . 4 24 . 4 2 . 4 1 2 . 14 18 3 18 33 Power 27 | 1 . . . . 4 3 1 . . . . 4 . . . . 2 1 . . 1 2 1 2 5 Engine 8 | 1 . . . . 4 1 . . . . . 1 . . . . . . . . . . . 1 . Core 10 | . . . . . . 2 1 . . . . 3 . . . . 1 1 . . 1 . . 1 . Reactor 9 | . . . . . . . . . . . . . . . . . 1 . . . . 2 1 . 5 Propulsion 58 | 2 2 . . . 14 13 2 . . . 1 6 . 1 . . . . . . 1 4 1 1 10 Treads 16 | 2 2 . . . 12 . . . . . . . . . . . . . . . . . . . . Leg . | . . . . . . . . . . . . . . . . . . . . . . . . . . Wheel . | . . . . . . . . . . . . . . . . . . . . . . . . . . Hover 11 | . . . . . 1 7 . . . . . . . . . . . . . . . . 1 . 2 Flight 31 | . . . . . 1 6 2 . . . 1 6 . 1 . . . . . . 1 4 . 1 8 Utility 102 | 1 5 . . . 11 12 4 1 . . . 13 . 2 2 . 2 . 2 . 11 10 1 12 13 Device 45 | . 1 . . . 3 2 2 1 . . . 5 . 2 1 . . . 1 . 4 6 1 6 10 Storage 12 | 1 1 . . . 2 2 . . . . . 2 . . . . 1 . . . . 1 . 2 . Processor 14 | . 1 . . . 1 2 . . . . . 2 . . 1 . . . . . 1 1 . 3 2 Hackware 18 | . . . . . . 4 1 . . . . 4 . . . . . . 1 . 4 2 . 1 1 Protection 13 | . 2 . . . 5 2 1 . . . . . . . . . 1 . . . 2 . . . . Artifact . | . . . . . . . . . . . . . . . . . . . . . . . . . . Weapon 36 | 3 2 . 1 . 12 2 . . . . 3 1 . 1 . . . . . . 1 2 . 3 5 Energy Gun 9 | . 1 . . . 8 . . . . . . . . . . . . . . . . . . . . Energy Cannon 1 | . . . . . 1 . . . . . . . . . . . . . . . . . . . . Ballistic Gun 5 | 3 . . . . 1 . . . . . 1 . . . . . . . . . . . . . . Ballistic Cannon . | . . . . . . . . . . . . . . . . . . . . . . . . . . Launcher 9 | . 1 . . . 1 1 . . . . 1 . . 1 . . . . . . . 2 . . 2 Special Weapon 1 | . . . . . . . . . . . 1 . . . . . . . . . . . . . . Impact Weapon 1 | . . . . . . . . . . . . . . . . . . . . . . . . 1 . Slashing Weapon 5 | . . . . . 1 . . . . . . 1 . . . . . . . . . . . 1 2 Piercing Weapon . | . . . . . . . . . . . . . . . . . . . . . . . . . . Special Melee Weapon 5 | . . . 1 . . 1 . . . . . . . . . . . . . . 1 . . 1 1 Unidentified Prototypes 37 | . . . . . 5 1 . . . . 1 3 . 1 . . 5 . . . 1 4 . 12 4 Parts Lost 86 | . 3 . . . 3 3 1 . . . 3 8 . 1 . . . 1 . . 9 23 . 9 22 Power 10 | . . . . . . 1 . . . . . 2 . . . . . 1 . . 1 3 . 1 1 Propulsion 22 | . 2 . . . . 2 . . . . 2 2 . 1 . . . . . . 1 6 . . 6 Utility 43 | . . . . . 3 . 1 . . . . 4 . . . . . . . . 6 9 . 8 12 Weapon 11 | . 1 . . . . . . . . . 1 . . . . . . . . . 1 5 . . 3 Highest Loss Streak 16 | . 2 . . . 1 2 1 . . . 1 4 . 1 . . . 1 . . 2 16 . 3 10 To Critical Strikes . | . . . . . . . . . . . . . . . . . . . . . . . . . . Average Backups 10 | 1 9 15 15 15 21 10 9 10 10 10 9 9 10 9 8 8 9 9 9 9 7 9 2 4 3 Power . | . 1 1 1 1 1 . . 1 1 1 1 1 2 2 2 2 2 1 1 1 . . . . . Propulsion 2 | . 2 3 3 3 5 2 1 1 1 1 . . 3 2 2 2 2 2 2 3 2 3 1 1 . Utility 4 | . 4 8 8 8 7 5 5 6 6 6 6 4 4 3 3 3 4 5 4 4 3 4 1 1 . Weapon 2 | . 1 2 2 2 6 1 . 1 1 1 1 1 1 1 1 1 1 1 1 1 . 1 . . 1 Tool/Special . | . . . . . . . . . . . . . . . . . . . . . . . . . . Unused Backups 39 | . 2 . . . 11 10 4 . 1 . . 4 . 1 . . . . . . . 2 . . 4 Power 5 | . 1 . . . 1 1 . . . . . . . . . . . . . . . . . . 2 Propulsion 6 | . . . . . 2 2 1 . . . . . . . . . . . . . . . . . 1 Utility 17 | . . . . . 4 2 3 . 1 . . 4 . 1 . . . . . . . 2 . . . Weapon 10 | . . . . . 4 5 . . . . . . . . . . . . . . . . . . 1 Tool/Special 1 | . 1 . . . . . . . . . . . . . . . . . . . . . . . . Average Slot Usage (%) 88 | . 98 100 100 100 98 97 99 100 100 100 98 92 100 99 100 100 98 100 99 100 93 88 22 29 38 Engine 3 | . 14 14 14 14 9 2 . . . . . 1 . . . . . . . . . . . 1 . Core 4 | . . . . . . 4 5 6 6 6 6 7 11 11 11 11 11 11 10 10 9 5 . . . Treads 8 | . 28 28 28 28 35 . . . . . . . . . . . . . . . . . . . . Hover 3 | . . . . . . 23 . . . . . . . . . . . . . . . . . 2 . Flight 15 | . . . . . . 5 32 33 33 33 32 28 29 29 29 29 29 29 25 26 25 21 5 3 10 Device 7 | . 1 . . . 7 6 9 13 13 13 13 6 5 9 10 11 6 10 10 10 9 10 3 2 11 Storage 6 | . 14 14 14 14 9 7 6 6 6 6 6 5 11 11 6 5 7 5 5 5 5 8 3 . . Processor 6 | . 8 . . . . 6 6 6 6 6 6 7 5 5 10 11 11 11 10 10 10 7 8 13 2 Hackware 11 | . . . . . . 15 19 20 20 20 20 18 17 17 17 17 17 17 21 21 24 20 . 1 3 Protection 5 | . 3 14 14 14 17 7 3 . . . . 4 5 . . . . . 4 5 . 2 . . . Energy Gun 2 | . 8 14 . . 10 . . . . . . . . . . . . . . . . . . . . Ballistic Gun 3 | . 19 14 14 14 4 4 . . . . 2 . . . . . . . . . . . . . . Slashing Weapon 3 | . . . . . . 6 6 6 6 6 5 5 5 5 5 4 5 4 5 5 5 3 . . 3 Special Melee Weapon 1 | . . . 13 . . 1 . . . . . . 5 5 5 5 5 5 5 5 1 2 . . 1 Peak Build Rating 136 | 6 11 11 11 11 37 53 66 66 67 67 75 87 87 96 90 90 100 94 102 100 114 126 43 75 136 Average Rating 58 | 4 9 11 10 11 28 47 62 66 66 67 66 70 87 92 89 89 90 90 98 99 101 110 32 44 76 On Entrance 55 | . 6 11 11 11 11 35 52 66 66 67 67 61 87 87 90 90 90 94 90 99 100 110 19 26 8 Avg Prop Armor Cover (%) 3 | . . . . . 9 3 . . . . . 16 . . . . . . . . 2 3 . 3 2 Naked Turns 7 | . . . . . . . . . . . . . . . . . . . . . . . . 4 3 Heaviest Build 106 | 14 35 35 35 35 106 99 22 21 21 21 25 30 30 31 30 29 26 30 27 27 29 34 5 9 43 Greatest Support 82 | 40 40 40 40 40 82 80 26 26 26 26 26 37 31 31 31 31 31 31 31 31 39 39 12 12 53 Greatest Overweight (x) 9 | . . . . . 2 3 . . . . . 9 . . . . . . . . 1 4 . 1 7 Average Overweight (x) . | . . . . . . . . . . . . . . . . . . . . . . . . . . Largest Inventory Capacity 25 | 8 15 15 15 15 25 25 10 10 10 10 10 10 10 10 10 10 10 10 10 10 10 10 5 5 5 Average Capacity 11 | 6 12 15 15 15 22 10 10 10 10 10 10 10 10 10 10 10 10 10 10 10 10 9 5 5 5 Most Carried 25 | 3 15 15 15 15 25 25 10 10 10 10 10 10 10 10 8 8 10 10 10 10 10 10 5 5 5 Average Carried 10 | 1 9 15 15 15 21 10 9 10 10 10 9 9 10 9 8 8 9 9 9 9 7 9 2 4 4 Final Capacity 25 | 8 15 15 15 15 25 10 10 10 10 10 10 10 10 10 10 10 10 10 10 10 10 5 5 5 5 Final Carried 24 | 3 15 15 15 15 24 10 10 10 10 10 10 10 10 8 8 8 10 10 10 10 10 4 5 5 1 Class Distribution -------------------- 45% | Hacker-Scout 19% | Mutant 9% | Scavenger-Mutant 8% | Scout 4% | Wizard-Ninja Dominant Class ---------------- Mutant | -10/Materials Mutant | -10/Mines Mutant | -10/Exiles Mutant | -9/Mines Scavenger-Mutant | -8/Materials Hacker-Scout | -7/Factory Hacker-Scout | -6/Factory Hacker-Scout | -6/Lower Caves Hacker-Scout | -6/Lower Caves Hacker-Scout | -6/Data Miner Hacker-Scout | -5/Proximity Caves Hacker-Scout | -5/Factory Hacker-Scout | -5/Waste Hacker-Scout | -5/Factory Hacker-Scout | -5/Upper Caves Hacker-Scout | -5/Upper Caves Hacker-Scout | -5/Zhirov Hacker-Scout | -4/Proximity Caves Hacker-Scout | -4/Factory Hacker-Scout | -4/Waste Wizard-Ninja | -4/Factory Hacker-Scout | -3/Research Scout | -2/Research Sprinter | -2/Testing Scout | -1/Access Resources | -11 -10 -10 -10 -9 -8 -7 -6 -6 -6 -6 -5 -5 -5 -5 -5 -5 -5 -4 -4 -4 -4 -3 -2 -2 -1 ----------- Run | Yrd Mat Min Exi Min Mat Fac Fac Low Low Dat Pro Fac Was Fac Upp Upp Zhi Pro Fac Was Fac Res Res Tes Acc Matter Collected 3958 | 170 507 . . . 690 573 128 10 . . 65 390 . 55 . 84 . 181 50 . 238 146 . 345 326 Remotely . | . . . . . . . . . . . . . . . . . . . . . . . . . . Salvage Created 6716 | . 669 . . . 1344 1368 467 . . . 225 865 . 274 . 41 . 68 365 . 409 170 . 55 396 Parts 387 | . 44 . . . 67 91 26 . . . 22 48 . 11 . 6 . 5 16 . 20 4 . 3 24 Haulers Intercepted 28 | . 2 . . . 6 5 1 . . . . 5 . 2 . . . . 2 . 2 1 . . 2 Recyclers Shooed 3 | . 1 . . . . 2 . . . . . . . . . . . . . . . . . . . Parts Field Recycled . | . . . . . . . . . . . . . . . . . . . . . . . . . . Retrieved Matter . | . . . . . . . . . . . . . . . . . . . . . . . . . . Parts Self-Destructed 20 | . . . . . . . . 1 . . 15 . . . . 2 . 2 . . . . . . . Prevented 5 | . . . . . . . . . . . . . . . . . . 5 . . . . . . . Parts Restored . | . . . . . . . . . . . . . . . . . . . . . . . . . . Kills | -11 -10 -10 -10 -9 -8 -7 -6 -6 -6 -6 -5 -5 -5 -5 -5 -5 -5 -4 -4 -4 -4 -3 -2 -2 -1 ------- Run | Yrd Mat Min Exi Min Mat Fac Fac Low Low Dat Pro Fac Was Fac Upp Upp Zhi Pro Fac Was Fac Res Res Tes Acc Combat Hostiles Destroyed 70 | . 18 . . . 21 6 2 . . . 8 . . . . 3 . 3 2 . 4 . . . 3 Melee 17 | . . . . . 1 6 2 . . . 3 . . . . . . 1 2 . 2 . . . . Guns 23 | . 11 . . . 12 . . . . . . . . . . . . . . . . . . . . Cannons 1 | . . . . . 1 . . . . . . . . . . . . . . . . . . . . AOE 28 | . 7 . . . 6 . . . . . 5 . . . . 3 . 2 . . 2 . . . 3 Classes Destroyed 17 | . 4 . . . 7 2 1 . . . 1 . . . . . . 1 . . . . . . 1 Worker 6 | . . . . . . 2 . . . . . 3 . . . . . . . . . . . . 1 Builder 20 | . . . . . 3 9 1 . . . . 4 . 1 . . . . . . . . . . 2 Tunneler 3 | . . . . . 1 . . . . . . . . . . . . . . . . 1 . . 1 Hauler 28 | . 2 . . . 6 5 1 . . . . 5 . 2 . . . . 2 . 2 1 . . 2 Recycler 9 | . . . . . 2 6 1 . . . . . . . . . . . . . . . . . . Mechanic 2 | . . . . . . . 1 . . . . 1 . . . . . . . . . . . . . Operator 13 | . 3 . . . . 3 1 . . . . 1 . . . . . . 1 . 1 1 . 2 . Drone 1 | . . . . . . . . . . . . . . . . . . 1 . . . . . . . Watcher 18 | . . . . . 2 2 1 . . . . 6 . 1 . . . . 1 . 3 1 . . 1 Swarmer 23 | . 6 . . . 4 . . . . . 5 . . . . 4 . . . . 4 . . . . Cutter 2 | . . . . . . . . . . . . . . . . . . . . . . . . . 2 Grunt 20 | . 12 . . . 8 . . . . . . . . . . . . . . . . . . . . Duelist 1 | . . . . . 1 . . . . . . . . . . . . . . . . . . . . Sentry 7 | . . . . . 7 . . . . . . . . . . . . . . . . . . . . Specialist 1 | . . . . . . . . . . . 1 . . . . . . . . . . . . . . Hunter 5 | . . . . . 1 1 . . . . 1 . . . . . . 2 . . . . . . . Programmer 11 | . . . . . . 5 2 . . . 1 . . . . . . . 2 . . . . . 1 Best Kill Streak 8 | . 5 . . . 8 4 2 . . . 5 4 . 3 . 3 . 2 3 . 5 2 . 2 2 Combat Bots Only 5 | . 5 . . . 5 2 1 . . . 5 . . . . 3 . 2 2 . 4 . . . 2 Max Kills in Single Turn 4 | . 2 . . . 4 1 1 . . . 4 1 . 1 . 3 . 1 1 . 2 1 . 1 1 Gunslinging . | . . . . . . . . . . . . . . . . . . . . . . . . . . Exploded 4 | . 2 . . . 3 . . . . . 4 . . . . 2 . 1 . . 2 . . . 1 Melee 1 | . . . . . 1 1 1 . . . 1 . . . . . . 1 1 . 1 . . . . Uniques/NPCs Destroyed . | . . . . . . . . . . . . . . . . . . . . . . . . . . Combat | -11 -10 -10 -10 -9 -8 -7 -6 -6 -6 -6 -5 -5 -5 -5 -5 -5 -5 -4 -4 -4 -4 -3 -2 -2 -1 -------- Run | Yrd Mat Min Exi Min Mat Fac Fac Low Low Dat Pro Fac Was Fac Upp Upp Zhi Pro Fac Was Fac Res Res Tes Acc Hostile Shots Fired 1012 | . 94 . . . 135 126 28 9 . . 22 12 . 4 . 6 . 17 4 . 67 119 16 76 277 Missed 409 | . 28 . . . 27 64 16 7 . . 9 1 . 2 . 2 . 12 2 . 32 26 8 31 142 Hits 603 | . 66 . . . 108 62 12 2 . . 13 11 . 2 . 4 . 5 2 . 35 93 8 45 135 Melee 4 | . . . . . . . . . . . . . . . . . . . . . . . . 2 2 Projectile 599 | . 66 . . . 108 62 12 2 . . 13 11 . 2 . 4 . 5 2 . 35 93 8 43 133 AOE 5 | . . . . . . . . . . . . 3 . . . . . . . . . . . . 2 Critical Strikes 36 | . . . . . 5 1 1 . . . 1 1 . . . . . . . . 2 14 . 3 8 Actively Blocked 11 | . . . . . . . 1 . . . . . . . . . . . . . 1 2 . . 7 Part Disruptions 2 | . . . . . . . . . . . . . . . . . . . . . . 1 . . 1 Damage Taken 12914 | . 860 . . . 1789 717 160 41 . . 213 563 . 38 . 66 . 159 45 . 630 2142 189 1711 3591 Core 4906 | . 109 . . . 140 229 46 . . . 19 233 . . . . . 55 . . 184 906 162 1217 1606 Absorbed by Shields 92 | . . . . . . . . . . . . . . . . . . . . . . . . . 92 Redirected to Shielding 250 | . . . . . . 15 9 . . . . 59 . . . . . . 14 . 48 105 . . . Regen/Repaired (Parts) 331 | . . . . . . 11 57 . . . . 71 . . . . . . 30 . 162 . . . . Core Remaining (%) 63 | 100 . . . 56 74 67 . . . . 92 . . . . . . 65 . . 84 30 . 4 . Volleys Fired 207 | . 81 . . . 102 3 . . . . 6 . . . . 3 . 3 . . 1 4 . . 4 Largest 2 | . 2 . . . 2 2 . . . . 1 . . . . 1 . 1 . . 1 1 . . 1 Hottest 118 | . 85 . . . 118 80 . . . . 43 . . . . 43 . 43 . . 43 49 . . 70 Shots Fired 294 | . 113 . . . 155 5 . . . . 6 . . . . 3 . 3 . . 1 4 . . 4 Gun 235 | . 106 . . . 123 5 . . . . 1 . . . . . . . . . . . . . . Cannon 24 | . . . . . 24 . . . . . . . . . . . . . . . . . . . . Launcher 35 | . 7 . . . 8 . . . . . 5 . . . . 3 . 3 . . 1 4 . . 4 Special . | . . . . . . . . . . . . . . . . . . . . . . . . . . Kinetic 135 | . 100 . . . 31 3 . . . . 1 . . . . . . . . . . . . . . Thermal 78 | . 6 . . . 72 . . . . . . . . . . . . . . . . . . . . Explosive 35 | . 7 . . . 8 . . . . . 5 . . . . 3 . 3 . . 1 4 . . 4 Electromagnetic 46 | . . . . . 44 2 . . . . . . . . . . . . . . . . . . . Robot Hit Streak 27 | . 10 . . . 27 8 . . . . 2 . . . . 2 . 2 . . . 2 . . 3 Robot Miss Streak 5 | . 5 . . . 4 1 . . . . 1 . . . . 1 . 1 . . 1 1 . . 1 Penetration Max . | . . . . . . . . . . . . . . . . . . . . . . . . . . Secondary Targets 2 | . 2 . . . . . . . . . . . . . . . . . . . . . . . . Max Gunslinging Chain 1 | . 1 . . . . . . . . . . . . . . . . . . . . . . . . Shots Hit Robots 407 | . 71 . 2 . 121 62 18 . . . 11 40 . 11 . 2 . 3 16 . 22 12 . 5 11 Core Hits 206 | . 36 . . . 61 24 6 . . . 9 14 . 3 . 3 . 5 7 . 11 11 . 1 15 Critical Kills . | . . . . . . . . . . . . . . . . . . . . . . . . . . Critical Parts Destroyed 3 | . 2 . . . . . . . . . . . . . . . . . . . . . . 1 . Critical Strikes 22 | . 3 . . . 2 4 1 . . . . 3 . 1 . . . . 2 . 5 . . 1 . Burn 3 | . 1 . . . 2 . . . . . . . . . . . . . . . . . . . . Destroy 2 | . 2 . . . . . . . . . . . . . . . . . . . . . . . . Smash 1 | . . . . . . . . . . . . . . . . . . . . . . . . 1 . Sever 16 | . . . . . . 4 1 . . . . 3 . 1 . . . . 2 . 5 . . . . Melee Attacks 693 | . . . 2 . 2 108 43 2 1 . 16 111 . 18 . 6 . 2 31 . 71 47 . 60 173 Impact 47 | . . . . . . . . . . . . . . . . . . . . . . . . 47 . Slashing 632 | . . . . . 2 106 43 2 1 . 16 109 . 17 . 6 . 2 31 . 68 46 . 11 172 Piercing . | . . . . . . . . . . . . . . . . . . . . . . . . . . Sneak Attacks 73 | . . . 2 . . 25 6 . . . 1 15 . 4 . . . . 3 . 4 2 . 3 8 Combat Hostiles 1 | . . . . . . . . . . . 1 . . . . . . . . . . . . . . Follow-up Attacks . | . . . . . . . . . . . . . . . . . . . . . . . . . . Damage Inflicted 19568 | . 1318 . . . 2833 4050 1199 . . . 870 2857 . 680 . 395 . 276 966 . 1353 711 9 324 1727 Guns 2734 | . 947 . . . 1719 49 . . . . 19 . . . . . . . . . . . . . . Cannons 228 | . . . . . 228 . . . . . . . . . . . . . . . . . . . . Explosions 3407 | . 345 . . . 799 . . . . . 407 . . . . 395 . 222 . . 175 195 . . 869 Melee 13078 | . . . . . 40 3988 1199 . . . 444 2857 . 680 . . . 54 966 . 1178 500 . 314 858 Ramming 121 | . 26 . . . 47 13 . . . . . . . . . . . . . . . 16 9 10 . Kinetic 1352 | . 858 . . . 448 27 . . . . 19 . . . . . . . . . . . . . . Thermal 1080 | . 89 . . . 991 . . . . . . . . . . . . . . . . . . . . Explosive 3341 | . 345 . . . 733 . . . . . 407 . . . . 395 . 222 . . 175 195 . . 869 Electromagnetic 596 | . . . . . 574 22 . . . . . . . . . . . . . . . . . . . Impact 314 | . . . . . . . . . . . . . . . . . . . . . . . . 314 . Slashing 12764 | . . . . . 40 3988 1199 . . . 444 2857 . 680 . . . 54 966 . 1178 500 . . 858 Piercing . | . . . . . . . . . . . . . . . . . . . . . . . . . . Highest Corruption 30 | . . . . . . 4 1 . . . 2 2 11 11 1 1 1 1 . 5 5 3 4 25 30 Average Corruption 3 | . . . . . . 2 1 . . . 1 1 9 4 1 1 1 1 . 5 5 2 2 7 14 Corruption Purged 24 | . . . . . . 4 1 . . . . 2 . 10 . . . . . . . 3 . 4 . Corruption Blocked . | . . . . . . . . . . . . . . . . . . . . . . . . . . Effects 126 | . . . . . . 26 7 . . . 4 11 5 3 1 3 1 2 . . 25 3 . 14 21 Message Errors 42 | . . . . . . 6 2 . . . 1 8 1 2 . . 1 2 . . 6 2 . 7 4 Matter Fused 27 | . . . . . . 8 2 . . . 1 . 1 . . 1 . . . . 5 1 . 3 5 Heat Flow Errors 17 | . . . . . . 5 . . . . 1 . . 1 1 . . . . . 5 . . 1 3 Energy Discharges 16 | . . . . . . 3 3 . . . 1 . . . . 2 . . . . 2 . . 1 4 Parts Rejected 2 | . . . . . . . . . . . . . 1 . . . . . . . . . . . 1 Parts Fused 2 | . . . . . . 1 . . . . . 1 . . . . . . . . . . . . . Data Loss (minor) 8 | . . . . . . 2 . . . . . 2 1 . . . . . . . 2 . . 1 . Data Loss (major) 3 | . . . . . . . . . . . . . . . . . . . . . 3 . . . . Alerts 3 | . . . . . . 1 . . . . . . . . . . . . . . 2 . . . . Misdirections 6 | . . . . . . . . . . . . . 1 . . . . . . . . . . 1 4 Overload Shots . | . . . . . . . . . . . . . . . . . . . . . . . . . . Overflow Damage 2787 | . . . . . 108 858 317 . . . 79 555 . 68 . 76 . 14 5 . 74 179 . 191 263 Projectiles . | . . . . . . . . . . . . . . . . . . . . . . . . . . Explosions 408 | . . . . . 108 . . . . . 7 . . . . 76 . . . . . 77 . . 140 Melee 2379 | . . . . . . 858 317 . . . 72 555 . 68 . . . 14 5 . 74 102 . 191 123 Knockbacks 3 | . 1 . . . 1 . . . . . . . . . . . . . . . . . . 1 . Impact 3 | . 1 . . . 1 . . . . . . . . . . . . . . . . . . 1 . Kinetic . | . . . . . . . . . . . . . . . . . . . . . . . . . . Secondary . | . . . . . . . . . . . . . . . . . . . . . . . . . . Self-Inflicted Damage 819 | . 146 . . . 33 6 . . . . . . . . . . . 54 . . 28 176 3 5 368 Shots 13 | . 3 . . . 1 . . . . . . . . . . . . 2 . . 1 3 . . 3 Rammed 20 | . 4 . . . 4 1 . . . . . . . . . . . . . . . 3 6 2 . Targets Rammed 22 | . 4 . . . 6 1 . . . . . . . . . . . . . . . 3 6 2 . Kicked . | . . . . . . . . . . . . . . . . . . . . . . . . . . Crushed 2 | . . . . . 2 . . . . . . . . . . . . . . . . . . . . Highest Temperature 411 | . 96 . . . 411 274 5 5 . . 190 36 . 150 258 4 . . . . 205 . . 214 224 Average Temperature 94 | . 19 . . . 142 93 5 3 . . 73 13 . 98 212 2 . . . . 68 . . 110 113 Received Heat Transfer 1578 | . 291 . . . 639 207 12 21 . . 9 63 . 18 . . . 9 . . 39 126 . 72 72 Effects 11 | . . . . . 10 1 . . . . . . . . . . . . . . . . . . . Shutdowns 2 | . . . . . 2 . . . . . . . . . . . . . . . . . . . . Energy Bleed 1 | . . . . . 1 . . . . . . . . . . . . . . . . . . . . Interference 6 | . . . . . 5 1 . . . . . . . . . . . . . . . . . . . Short Circuit 1 | . . . . . 1 . . . . . . . . . . . . . . . . . . . . Damage (minor) 1 | . . . . . 1 . . . . . . . . . . . . . . . . . . . . Siege Activations . | . . . . . . . . . . . . . . . . . . . . . . . . . . Martial Activations . | . . . . . . . . . . . . . . . . . . . . . . . . . . Shielding Activations . | . . . . . . . . . . . . . . . . . . . . . . . . . . Robots Disrupted 2 | . . . . . 2 . . . . . . . . . . . . . . . . . . . . Combat Hostiles . | . . . . . . . . . . . . . . . . . . . . . . . . . . Robots Corrupted 2 | . . . . . 1 . . . . . . . . . . . . . . . . . . 1 . Combat Hostiles 1 | . . . . . 1 . . . . . . . . . . . . . . . . . . . . Parts Fried 5 | . . . . . 4 . . . . . . . . . . . . . . . . . . 1 . Impact Corruptions 5 | . . . . . . . . . . . . . . . . . . . . . . . . 5 . Robots Melted . | . . . . . . . . . . . . . . . . . . . . . . . . . . Combat Hostiles . | . . . . . . . . . . . . . . . . . . . . . . . . . . Parts Melted 8 | . . . . . 8 . . . . . . . . . . . . . . . . . . . . Heat Transferred 2455 | . 296 . . . 2159 . . . . . . . . . . . . . . . . . . . . Parts Sabotaged 3 | . . . . . . . . . . . . . . . . . . . . . . . . 3 . Parts Stolen . | . . . . . . . . . . . . . . . . . . . . . . . . . . Parts Stripped . | . . . . . . . . . . . . . . . . . . . . . . . . . . Power Chain Reactions . | . . . . . . . . . . . . . . . . . . . . . . . . . . Alert | -11 -10 -10 -10 -9 -8 -7 -6 -6 -6 -6 -5 -5 -5 -5 -5 -5 -5 -4 -4 -4 -4 -3 -2 -2 -1 ------- Run | Yrd Mat Min Exi Min Mat Fac Fac Low Low Dat Pro Fac Was Fac Upp Upp Zhi Pro Fac Was Fac Res Res Tes Acc Maximum Alert Level 5 | . . . . . 1 1 . . . . . 1 . . . . . . . . 1 1 . 5 5 Low Security (%) 70 | 100 100 100 . 100 47 88 100 . . . . 95 100 100 . . . . 100 100 73 93 100 . . Level 1 13 | . . . . . 52 11 . . . . . 4 . . . . . . . . 26 6 . . . Level 2 . | . . . . . . . . . . . . . . . . . . . . . . . . . . Level 3 3 | . . . . . . . . . . . . . . . . . . . . . . . . . 33 Level 4 6 | . . . . . . . . . . . . . . . . . . . . . . . . . 64 Level 5 . | . . . . . . . . . . . . . . . . . . . . . . . . . 1 High Security . | . . . . . . . . . . . . . . . . . . . . . . . . . . Max Security 5 | . . . . . . . . . . . . . . . . . . . . . . . . 99 . Peak Influence 1919 | . 192 66 . . 395 321 196 . . . . 222 1 37 . . . . 175 15 397 242 114 1816 1919 Initial 1100 | . . 66 . . . 164 51 . . . . 58 1 . . . . . 175 15 3 120 87 41 1100 Average 308 | . 83 31 . . 178 109 41 . . . . 65 . 9 . . . . 68 13 152 85 94 1705 1240 Influence Increases 8318 | . 577 . . . 921 967 504 292 . . 170 744 . 111 30 72 . 70 361 . 1045 558 27 265 1604 Destroy 0b10 Robot/C 1620 | . 360 . . . 420 120 40 20 . . 160 60 . . . 60 . 40 40 . 200 40 . . 60 Destroy 0b10 Robot/NC 520 | . 25 . . . 70 135 30 . . . . 100 . 20 . . . 5 20 . 45 25 . 10 35 Destroy Leader 452 | . 84 . . . 126 74 24 . . . 10 32 . 6 . 10 . 10 16 . 50 4 . . 6 Allied During Kill 22 | . . . . . . . . 2 . . . 5 . . . 2 . . . . 4 9 . . . Successful Hack 428 | . 12 . . . 14 57 117 . . . . 100 . . . . . . 23 . 54 . 27 . 24 Disable Machine 555 | . 30 . . . 195 . 30 . . . . . . 30 . . . . . . 150 . . 90 30 Destroy Structure 1166 | . 66 . . . 51 41 23 . . . . 132 . 10 . . . . 22 . 212 210 . 60 339 Advance Influence 150 | . . . . . . . . . . . . . . . . . . . 150 . . . . . . Partial Spotted 465 | . . . . . . 45 120 . . . . 90 . . . . . . 45 . 75 45 . 15 30 Lose Combat Pursuer 2940 | . . . . . 45 495 120 270 . . . 225 . 45 30 . . 15 45 . 255 225 . 90 1080 Influence Decreases 7994 | . 405 172 . . 559 1224 426 158 211 106 76 833 5 84 27 54 48 30 356 40 820 631 110 123 1496 Entered New Map 1669 | . . 106 . . . 198 54 68 61 106 . 36 4 . 11 6 48 . 15 30 2 110 70 33 711 Time Decay 4440 | . 375 66 . . 529 606 329 70 150 . 66 487 1 84 16 48 . 30 261 10 458 249 40 . 565 Search Patrol Dispatched 300 | . . . . . . 200 . . . . . 100 . . . . . . . . . . . . . Lost Part 745 | . 30 . . . 30 30 9 . . . 10 24 . . . . . . . . 90 212 . 90 220 Lost Ally 424 | . . . . . . 40 34 20 . . . 70 . . . . . . 80 . 120 60 . . . Purge Threat 416 | . . . . . . 150 . . . . . 116 . . . . . . . . 150 . . . . Squads Dispatched 161 | . 4 . . . 1 21 7 . . . . 31 . 3 . . . . 8 . 15 11 . 43 17 Investigation 50 | . 1 . . . 1 9 3 . . . . 20 . . . . . . 3 . 6 5 . . 2 Extermination 32 | . . . . . . 6 4 . . . . 6 . . . . . . 1 . 4 2 . . 9 Reinforcement 20 | . 3 . . . . 3 . . . . . 2 . 3 . . . . 1 . 2 3 . 1 2 Assault 46 | . . . . . . . . . . . . . . . . . . . . . . . . 42 4 Garrison 13 | . . . . . . 3 . . . . . 3 . . . . . . 3 . 3 1 . . . Intercept . | . . . . . . . . . . . . . . . . . . . . . . . . . . Searches Triggered 3 | . . . . . . 2 . . . . . 1 . . . . . . . . . . . . . Unchained Authorized 2 | . . . . . . . . . . . . . . . . . . . . . 1 1 . . . Data Miner Redirects 8 | . . . . . . . . . . . . . . . . . . . . . 1 1 . . 6 Construction Impeded 3 | . . . . . . 1 . . . . . 1 . . . . . . . . . 1 . . . Haulers Reinforced 4 | . . . . . . 1 . . . . . . . 1 . . . . . . 2 . . . . Active Scanning Responses . | . . . . . . . . . . . . . . . . . . . . . . . . . . Cargo Convoy Interrupts . | . . . . . . . . . . . . . . . . . . . . . . . . . . Stealth | -11 -10 -10 -10 -9 -8 -7 -6 -6 -6 -6 -5 -5 -5 -5 -5 -5 -5 -4 -4 -4 -4 -3 -2 -2 -1 --------- Run | Yrd Mat Min Exi Min Mat Fac Fac Low Low Dat Pro Fac Was Fac Upp Upp Zhi Pro Fac Was Fac Res Res Tes Acc Distress Signals 29 | . 1 . . . 5 7 3 . . . . 4 . . . . . . 3 . 1 1 . . 4 Communications Jammed . | . . . . . . . . . . . . . . . . . . . . . . . . . . Distress Signals . | . . . . . . . . . . . . . . . . . . . . . . . . . . Times Spotted 460 | . 46 . . . 47 49 10 15 . . 7 26 6 4 3 3 . 5 8 4 31 29 3 76 88 Peak Tracking Total 51 | . 5 . . . 7 7 3 9 . . 5 6 6 3 3 4 . 3 3 4 6 10 3 51 33 Tactical Retreats 89 | . . . . . 2 15 7 3 . . . 9 . 1 1 . . 1 3 . 13 7 . 3 24 Traps | -11 -10 -10 -10 -9 -8 -7 -6 -6 -6 -6 -5 -5 -5 -5 -5 -5 -5 -4 -4 -4 -4 -3 -2 -2 -1 ------- Run | Yrd Mat Min Exi Min Mat Fac Fac Low Low Dat Pro Fac Was Fac Upp Upp Zhi Pro Fac Was Fac Res Res Tes Acc Traps Triggered 16 | . 1 . . . 2 4 . . . . . 3 . . . . . . 1 . . 2 . 1 2 Indirectly . | . . . . . . . . . . . . . . . . . . . . . . . . . . Trap Hack Attempts . | . . . . . . . . . . . . . . . . . . . . . . . . . . Triggered . | . . . . . . . . . . . . . . . . . . . . . . . . . . Disarmed . | . . . . . . . . . . . . . . . . . . . . . . . . . . Reprogrammed . | . . . . . . . . . . . . . . . . . . . . . . . . . . Reused . | . . . . . . . . . . . . . . . . . . . . . . . . . . Traps Extracted . | . . . . . . . . . . . . . . . . . . . . . . . . . . Installed . | . . . . . . . . . . . . . . . . . . . . . . . . . . Triggered . | . . . . . . . . . . . . . . . . . . . . . . . . . . Machines | -11 -10 -10 -10 -9 -8 -7 -6 -6 -6 -6 -5 -5 -5 -5 -5 -5 -5 -4 -4 -4 -4 -3 -2 -2 -1 ---------- Run | Yrd Mat Min Exi Min Mat Fac Fac Low Low Dat Pro Fac Was Fac Upp Upp Zhi Pro Fac Was Fac Res Res Tes Acc Machines Disabled 37 | . 2 . . . 13 . 2 . . . . . . 2 . . . . . . 10 . . 6 2 Max in Single Turn 9 | . 1 . . . 9 . 1 . . . . . . 1 . . . . . . 1 . . 1 1 Machines Repaired . | . . . . . . . . . . . . . . . . . . . . . . . . . . Machines Dismantled . | . . . . . . . . . . . . . . . . . . . . . . . . . . Machines Sabotaged . | . . . . . . . . . . . . . . . . . . . . . . . . . . Overloaded Fab Kills . | . . . . . . . . . . . . . . . . . . . . . . . . . . Hacking | -11 -10 -10 -10 -9 -8 -7 -6 -6 -6 -6 -5 -5 -5 -5 -5 -5 -5 -4 -4 -4 -4 -3 -2 -2 -1 --------- Run | Yrd Mat Min Exi Min Mat Fac Fac Low Low Dat Pro Fac Was Fac Upp Upp Zhi Pro Fac Was Fac Res Res Tes Acc Machines Accessed 126 | . 6 . 2 . 8 22 16 . . 4 . 26 . 1 . . 9 . 8 . 14 6 2 . 2 Terminals 56 | . 5 . . . 5 11 8 . . . . 11 . 1 . . . . 4 . 8 2 1 . . Fabricators 15 | . . . . . . 4 1 . . . . 5 . . . . . . 1 . 1 2 . . 1 Repair Stations 12 | . . . . . . 3 2 . . . . 4 . . . . . . 1 . 2 . . . . Recycling Units 2 | . 1 . . . . 1 . . . . . . . . . . . . . . . . . . . Scanalyzers 12 | . . . . . 2 2 2 . . . . 3 . . . . . . 1 . 1 . . . 1 Garrison Access 14 | . . . . . 1 1 3 . . . . 3 . . . . . . 1 . 2 2 1 . . Total Hacks 460 | . 17 . 2 . 29 71 52 . . 30 . 87 . 2 . . 48 . 33 . 66 13 2 . 8 Successful 316 | . 6 . 2 . 17 42 35 . . 30 . 50 . 1 . . 48 . 21 . 54 8 1 . 1 Failed 140 | . 11 . . . 12 28 16 . . . . 36 . 1 . . . . 11 . 12 5 1 . 7 Catastrophic 26 | . 2 . . . 5 2 2 . . . . 8 . . . . . . 1 . 2 . 1 . 3 Database Lockouts 4 | . . . . . . 1 1 . . . . 1 . . . . . . 1 . . . . . . Manual 220 | . 16 . 1 . 20 33 32 . . . 1 44 . 2 . . . . 21 . 38 8 2 . 2 Terminals 205 | . 16 . . . 18 33 28 . . . . 43 . 2 . . . . 18 . 42 4 1 . . Fabricators 45 | . . . . . . 15 3 . . . . 15 . . . . . . 2 . 3 5 . . 2 Repair Stations 44 | . . . . . . 8 7 . . . . 12 . . . . . . 3 . 14 . . . . Recycling Units 3 | . 1 . . . . 2 . . . . . . . . . . . . . . . . . . . Scanalyzers 56 | . . . . . 9 12 8 . . . . 11 . . . . . . 5 . 5 . . . 6 Garrison Access 27 | . . . . . 2 1 6 . . . . 6 . . . . . . 5 . 2 4 1 . . Terminal Hacks 131 | . 1 . 2 . . 5 9 . . 30 . 8 . . . . 48 . 7 . 20 1 . . . Record 49 | . . . 1 . . . . . . 11 . 1 . . . . 36 . . . . . . . . Part Schematic 18 | . . . . . . . 1 . . 8 . 1 . . . . 4 . . . 4 . . . . Robot Schematic 8 | . . . . . . . . . . 8 . . . . . . . . . . . . . . . Robot Analysis 5 | . . . . . . . 1 . . . . . . . . . 4 . . . . . . . . Prototype ID Bank 9 | . . . . . . . . . . 3 . . . . . . 4 . . . 2 . . . . Level Access Points 1 | . . . . . . . . . . . . . . . . . . . . . 1 . . . . Branch Access Points 4 | . 1 . . . . 1 . . . . . . . . . . . . 1 . 1 . . . . Emergency Access Points 1 | . . . . . . . . . . . . . . . . . . . 1 . . . . . . Terminal Index 4 | . . . . . . 1 1 . . . . . . . . . . . 1 . 1 . . . . Fabricator Index 6 | . . . . . . 1 2 . . . . 1 . . . . . . 1 . 1 . . . . Repair Station Index 1 | . . . . . . . . . . . . . . . . . . . . . 1 . . . . Scanalyzer Index 2 | . . . . . . . . . . . . . . . . . . . 1 . 1 . . . . Garrison Index 1 | . . . . . . . . . . . . . . . . . . . 1 . . . . . . Alert Level 1 | . . . . . . . 1 . . . . . . . . . . . . . . . . . . Unreport Threat 3 | . . . . . . 1 . . . . . 1 . . . . . . . . 1 . . . . Locate Traps 7 | . . . . . . . 2 . . . . 1 . . . . . . 1 . 2 1 . . . Recall Investigation 2 | . . . . . . 1 . . . . . 1 . . . . . . . . . . . . . Recall Extermination 3 | . . . . . . . . . . . . 1 . . . . . . . . 2 . . . . Recall Reinforcements 1 | . . . . . . . . . . . . 1 . . . . . . . . . . . . . Zone Layout 4 | . . . . . . . 1 . . . . . . . . . . . . . 3 . . . . Proto ID Catalog 1 | . . . 1 . . . . . . . . . . . . . . . . . . . . . . Fabricator Hacks 28 | . . . . . . 9 2 . . . . 9 . . . . . . 2 . 2 4 . . . Load Schematic 15 | . . . . . . 5 1 . . . . 5 . . . . . . 1 . 1 2 . . . Build 13 | . . . . . . 4 1 . . . . 4 . . . . . . 1 . 1 2 . . . Repair Station Hacks 37 | . . . . . . 5 5 . . . . 11 . . . . . . 2 . 14 . . . . Scan Component 19 | . . . . . . 3 2 . . . . 6 . . . . . . 1 . 7 . . . . Repair 16 | . . . . . . 2 2 . . . . 4 . . . . . . 1 . 7 . . . . Refit 2 | . . . . . . . 1 . . . . 1 . . . . . . . . . . . . . Recycling Unit Hacks 3 | . 1 . . . . 2 . . . . . . . . . . . . . . . . . . . Report Inventory 2 | . 1 . . . . 1 . . . . . . . . . . . . . . . . . . . Retrieve Components 1 | . . . . . . 1 . . . . . . . . . . . . . . . . . . . Scanalyzer 40 | . . . . . 9 10 4 . . . . 8 . . . . . . 5 . 3 . . . 1 Insert Component 13 | . . . . . 3 3 2 . . . . 2 . . . . . . 2 . 1 . . . . Analyze 16 | . . . . . 4 5 2 . . . . 2 . . . . . . 2 . 1 . . . . Retrieve Study 11 | . . . . . 2 2 . . . . . 4 . . . . . . 1 . 1 . . . 1 Garrison Access Hacks . | . . . . . . . . . . . . . . . . . . . . . . . . . . Unauthorized Hacks 77 | . 4 . . . 8 11 15 . . . . 14 . 1 . . . . 5 . 15 3 1 . . Terminals 60 | . 4 . . . 8 8 10 . . . . 11 . 1 . . . . 4 . 13 1 . . . Botnet 48 | . 3 . . . 5 7 8 . . . . 11 . 1 . . . . 4 . 8 1 . . . Disrupt 5 | . . . . . 1 . 1 . . . . . . . . . . . . . 3 . . . . Operators 7 | . 1 . . . 2 1 1 . . . . . . . . . . . . . 2 . . . . Fabricators 4 | . . . . . . 2 1 . . . . 1 . . . . . . . . . . . . . Fabnet 4 | . . . . . . 2 1 . . . . 1 . . . . . . . . . . . . . Repair Stations 1 | . . . . . . . 1 . . . . . . . . . . . . . . . . . . Mechanics 1 | . . . . . . . 1 . . . . . . . . . . . . . . . . . . Recycling Units . | . . . . . . . . . . . . . . . . . . . . . . . . . . Scanalyzers . | . . . . . . . . . . . . . . . . . . . . . . . . . . Garrison Access 12 | . . . . . . 1 3 . . . . 2 . . . . . . 1 . 2 2 1 . . Reprogram 12 | . . . . . . 1 3 . . . . 2 . . . . . . 1 . 2 2 1 . . Data Cores Recovered 3 | . . . . . . 1 1 . . . . . . . . . . . . . 1 . . . . Used 1 | . . . . . . . 1 . . . . . . . . . . . . . . . . . . Hacking Detections 98 | . 5 . . . 8 19 15 . . . . 23 . 1 . . . . 7 . 11 6 1 . 2 Full Trace Events 40 | . 2 . . . 2 8 1 . . . . 16 . . . . . . 2 . 4 3 . . 2 Feedback Events 5 | . . . . . . . . . . . . 4 . . . . . . . . . 1 . . . Corruption 2 | . . . . . . . . . . . . 2 . . . . . . . . . . . . . Hackware Fried 3 | . . . . . . . . . . . . 2 . . . . . . . . . 1 . . . Feedback Blocked . | . . . . . . . . . . . . . . . . . . . . . . . . . . Robot Schematics Acquired 8 | . . . . . . . . . . 8 . . . . . . . . . . . . . . . Robots Built . | . . . . . . . . . . . . . . . . . . . . . . . . . . Authchips . | . . . . . . . . . . . . . . . . . . . . . . . . . . Time . | . . . . . . . . . . . . . . . . . . . . . . . . . . Total Robot Build Rating . | . . . . . . . . . . . . . . . . . . . . . . . . . . Part Schematics Acquired 31 | . . . . . 3 3 3 . . 8 . 3 . . . . 4 . 2 . 5 . . . . Parts Built 16 | . . . . . . 4 2 . . . . 6 . . . . . . 1 . 1 2 . . . Authchips . | . . . . . . . . . . . . . . . . . . . . . . . . . . Time 1129 | . . . . . . 536 35 . . . . 326 . . . . . . 53 . 76 103 . . . Total Part Build Rating 90 | . . . . . . 16 12 . . . . 40 . . . . . . 6 . 5 11 . . . Part Studies Acquired 10 | . . . . . 2 2 . . . . . 3 . . . . . . 1 . 1 . . . 1 Parts Repaired 16 | . . . . . . 2 2 . . . . 4 . . . . . . 1 . 7 . . . . Time 902 | . . . . . . 132 92 . . . . 182 . . . . . . 34 . 462 . . . . Parts Recycled . | . . . . . . . . . . . . . . . . . . . . . . . . . . Recycled Matter . | . . . . . . . . . . . . . . . . . . . . . . . . . . Retrieved Matter . | . . . . . . . . . . . . . . . . . . . . . . . . . . Retrieved Components 10 | . . . . . . 10 . . . . . . . . . . . . . . . . . . . Parts Scanalyzed 13 | . . . . . 3 3 2 . . . . 2 . . . . . . 2 . 1 . . . . Part Schematics Acquired 13 | . . . . . 3 3 2 . . . . 2 . . . . . . 2 . 1 . . . . Parts Damaged 3 | . . . . . 1 1 . . . . . . . . . . . . 1 . . . . . . Bothacking | -11 -10 -10 -10 -9 -8 -7 -6 -6 -6 -6 -5 -5 -5 -5 -5 -5 -5 -4 -4 -4 -4 -3 -2 -2 -1 ------------ Run | Yrd Mat Min Exi Min Mat Fac Fac Low Low Dat Pro Fac Was Fac Upp Upp Zhi Pro Fac Was Fac Res Res Tes Acc Used RIF Installer . | . . . . . . . . . . . . . . . . . . . . . . . . . . Robots Hacked 9 | . . . 2 . . . 1 1 . . . 1 . 1 . 1 . . 1 . . . . 1 . Non-combat 3 | . . . 1 . . . . . . . . . . 1 . . . . . . . . . 1 . Combat 6 | . . . 1 . . . 1 1 . . . 1 . . . 1 . . 1 . . . . . . Robot Hacks Applied 4 | . . . 2 . . . . . . . . . . 1 . . . . . . . . . 1 . parse_system 2 | . . . 2 . . . . . . . . . . . . . . . . . . . . . . find_fabricator 2 | . . . . . . . . . . . . . . 1 . . . . . . . . . 1 . Relay Couplers Released . | . . . . . . . . . . . . . . . . . . . . . . . . . . Fabnet Peak Effective % 6 | . . . . . . . 6 6 6 6 5 5 5 5 5 5 5 4 4 4 4 1 . . . Autooverrided 5 | . . . . . . . 1 1 . . . 1 . . . 1 . . 1 . . . . . . Robots Rewired . | . . . . . . . . . . . . . . . . . . . . . . . . . . Allies Hacked . | . . . . . . . . . . . . . . . . . . . . . . . . . . Hacks Repelled . | . . . . . . . . . . . . . . . . . . . . . . . . . . Allies | -11 -10 -10 -10 -9 -8 -7 -6 -6 -6 -6 -5 -5 -5 -5 -5 -5 -5 -4 -4 -4 -4 -3 -2 -2 -1 -------- Run | Yrd Mat Min Exi Min Mat Fac Fac Low Low Dat Pro Fac Was Fac Upp Upp Zhi Pro Fac Was Fac Res Res Tes Acc Total Allies 26 | . . . . . . 2 3 1 . . . 5 . . . 1 . . 4 . 6 4 . . . Largest Group 6 | . . . . . . 2 3 1 . . . 4 . . . . . . 4 . 6 2 . . . Highest-Rated Group 300 | . . . . . . 32 107 49 . . . 116 . . . . . . 188 . 300 74 . . . Highest-Rated Ally 64 | . . . . . . 16 41 49 . . . 41 . . . . . . 47 . 56 64 . . . Total Orders . | . . . . . . . . . . . . . . . . . . . . . . . . . . Ally Attacks 113 | . . . . . . 6 9 4 . . . 34 . . . 1 . . 10 . 34 15 . . . Total Damage 4010 | . . . . . . 75 78 140 . . . 536 . . . . . . 350 . 2091 740 . . . Kills 17 | . . . . . . . . 1 . . . 3 . . . . . . . . 9 4 . . . Allies Corrupted . | . . . . . . . . . . . . . . . . . . . . . . . . . . Allies Melted 2 | . . . . . . . . 1 . . . 1 . . . . . . . . . . . . . Intel | -11 -10 -10 -10 -9 -8 -7 -6 -6 -6 -6 -5 -5 -5 -5 -5 -5 -5 -4 -4 -4 -4 -3 -2 -2 -1 ------- Run | Yrd Mat Min Exi Min Mat Fac Fac Low Low Dat Pro Fac Was Fac Upp Upp Zhi Pro Fac Was Fac Res Res Tes Acc Active Infowar (turns) 12238 | . . . . . . 1932 1203 156 310 21 1025 2229 86 258 56 500 76 297 582 23 1156 596 82 66 1584 Sensors 6306 | . . . . . . . . 154 310 21 1025 7 . . 55 500 76 297 582 23 971 553 82 66 1584 Terrain 9662 | . . . . . . 1932 1203 156 310 21 1025 2226 86 258 56 500 20 289 582 23 137 326 . . 512 Traps 1 | . . . . . . . . . . . . . . . . . . . . . . 1 . . . T.N.C. 814 | . . . . . . . . . . . . 814 . . . . . . . . . . . . . Jamming 1175 | . . . . . . . . . . . . . . . . . . . . . 980 195 . . . Robot Analysis Total 5 | . . . . . . . 1 . . . . . . . . . 4 . . . . . . . . Derelict Logs Recovered 9 | . . . . . . . . 1 2 . 2 . . . 1 1 . 2 . . . . . . . Drone Launches . | . . . . . . . . . . . . . . . . . . . . . . . . . . Drone Recoveries . | . . . . . . . . . . . . . . . . . . . . . . . . . . Exploration | -11 -10 -10 -10 -9 -8 -7 -6 -6 -6 -6 -5 -5 -5 -5 -5 -5 -5 -4 -4 -4 -4 -3 -2 -2 -1 ------------- Run | Yrd Mat Min Exi Min Mat Fac Fac Low Low Dat Pro Fac Was Fac Upp Upp Zhi Pro Fac Was Fac Res Res Tes Acc Turns Passed 18564 | 78 1468 157 376 61 2801 2414 1212 156 310 21 1025 2247 86 258 56 500 77 297 582 23 1156 606 92 811 1694 Spaces Moved 23940 | 43 707 99 231 39 1085 2987 2452 341 459 87 855 3591 189 552 213 592 227 611 973 87 2071 1329 120 973 3027 Core 651 | 3 . . . . . . . . . . . 1 . . . . . . . . . 9 14 540 84 Treads 2229 | 40 707 99 231 39 1085 28 . . . . . . . . . . . . . . . . . . . Legs . | . . . . . . . . . . . . . . . . . . . . . . . . . . Wheels . | . . . . . . . . . . . . . . . . . . . . . . . . . . Hover 2444 | . . . . . . 2372 . . . . . . . . . . . . . . . . 3 65 4 Flight 18616 | . . . . . . 587 2452 341 459 87 855 3590 189 552 213 592 227 611 973 87 2071 1320 103 368 2939 Fastest Speed 15 | 50 160 160 160 160 156 26 23 24 24 24 23 16 25 25 25 25 25 25 25 25 15 15 32 32 28 Average Speed 44 | 152 160 160 160 160 215 42 23 24 24 24 23 26 25 25 25 25 25 25 25 25 25 26 35 44 34 Slowest Speed 500 | 160 160 160 160 160 320 290 24 24 24 24 26 500 25 25 25 25 25 25 25 25 117 250 70 100 400 Overloaded Moves 122 | . . . . . . . . . . . . 7 . . . . . . . . 57 58 . . . Propulsion Burnouts . | . . . . . . . . . . . . . . . . . . . . . . . . . . Robots Hopped 67 | . . . . . . 4 4 . . . . 15 . 1 . . . . 1 . 12 14 . 4 12 Potential Cave-ins 109 | . . . . . . . . . . . . . . . . . . . . . . 12 . 23 74 Cave-ins Triggered 12 | . . . . . . . . . . . . . . . . . . . . . . . . 8 4 Teleports 1 | . . . . . . . . . . . . . . . . . 1 . . . . . . . . Exploration Rate (%) 52 | 5 90 45 61 20 72 51 44 55 63 69 69 63 78 12 44 74 62 77 25 78 35 31 4 81 51 Regions Visited 25 Branch Regions 12 Pre-discovered Areas 5 | . . . . 1 . . . . . 1 . . . . . . 3 . . . . . . . . Known Exits Taken 9 | . 1 . . . . . . 1 . . . . . . 1 1 1 1 . . 1 1 1 . . Unknown Exits Taken 12 | 1 . 1 1 1 1 1 1 . 1 1 1 . . 1 . . . . . . . . . 1 . Scrap Searched 10 | . . . . . . . . . 3 . 1 . . . 1 2 . 3 . . . . . . . Spaces Dug 452 | . . . . . . 41 22 2 1 . 18 67 . 5 . 6 . . 11 . 39 37 . 45 158 Terrain Destroyed 828 | . 70 . . . 47 41 22 2 1 . 63 67 . 5 . 53 . 28 11 . 52 115 . 45 206 Melee 442 | . . . . . . 41 22 2 1 . 8 67 . 5 . 6 . . 11 . 39 37 . 45 158 Projectile . | . . . . . . . . . . . . . . . . . . . . . . . . . . AOE 386 | . 70 . . . 47 . . . . . 55 . . . . 47 . 28 . . 13 78 . . 48 Terrain Rammed . | . . . . . . . . . . . . . . . . . . . . . . . . . . Walls Destroyed . | . . . . . . . . . . . . . . . . . . . . . . . . . . Machines Disabled . | . . . . . . . . . . . . . . . . . . . . . . . . . . Actions | -11 -10 -10 -10 -9 -8 -7 -6 -6 -6 -6 -5 -5 -5 -5 -5 -5 -5 -4 -4 -4 -4 -3 -2 -2 -1 --------- Run | Yrd Mat Min Exi Min Mat Fac Fac Low Low Dat Pro Fac Was Fac Upp Upp Zhi Pro Fac Was Fac Res Res Tes Acc Total 30712 | 52 929 98 236 38 1391 4018 3031 411 658 86 1652 4771 226 652 214 932 243 747 1278 88 2612 1514 171 1256 3408 Wait 5264 | . 102 . . . 77 800 511 68 197 . 761 1015 37 75 . 330 8 127 268 . 449 95 36 176 132 Move 23788 | 42 706 98 230 38 1084 2978 2443 340 458 86 854 3562 188 549 212 591 226 610 971 86 2049 1302 120 966 2999 Hop 59 | . . . . . . 4 4 . . . . 14 . 1 . . . . 1 . 9 12 . 2 12 Pick Up 142 | 3 19 . 1 . 31 25 11 . 1 . . 18 . 1 . . 1 1 2 1 8 5 1 5 8 Fast Attach 112 | 6 2 . . . 6 13 . . . . 5 8 1 . . . 3 . 1 . 10 10 1 23 23 Attach 74 | . 3 . . . 6 9 3 . . . 2 10 . 2 . . . 1 2 . 6 11 4 3 12 Detach 28 | . . . . . . 3 . . . . 3 2 . . . . 1 . . . 1 4 4 4 6 Swap 142 | 1 7 . 2 . 39 24 8 1 . . 2 14 . 4 2 2 4 3 2 . 6 13 . . 8 Drop 148 | . 5 . 1 . 38 35 8 . 1 . 3 17 . 2 . . . . . 1 2 8 . 15 12 Fire 207 | . 81 . . . 102 3 . . . . 6 . . . . 3 . 3 . . 1 4 . . 4 Melee 693 | . . . 2 . 2 108 43 2 1 . 16 111 . 18 . 6 . 2 31 . 71 47 . 60 173 Ram 10 | . . . . . . 1 . . . . . . . . . . . . . . . 3 5 1 . Kick . | . . . . . . . . . . . . . . . . . . . . . . . . . . Crush 10 | . 4 . . . 6 . . . . . . . . . . . . . . . . . . . . Escape Stasis 35 | . . . . . . 15 . . . . . . . . . . . . . . . . . 1 19 Rewire . | . . . . . . . . . . . . . . . . . . . . . . . . . . Trap . | . . . . . . . . . . . . . . . . . . . . . . . . . . Miscellaneous . | . . . . . . . . . . . . . . . . . . . . . . . . . . Route ------- -11/Scrapyard -10/Materials (discovered 4 exits: [*Mat x3] / *Min) -10/Mines -10/Exiles -9/Mines -8/Materials (discovered 2 exits: *Fac x2) -7/Factory (discovered 4 exits: *Fac x2 / Low x2) -6/Factory (discovered 3 exits: *Fac x2 / [*Low]) -6/Lower Caves -6/Lower Caves -6/Data Miner -5/Proximity Caves -5/Factory (discovered 5 exits: *Fac x3 / [*Upp] / *Ext) -5/Waste -5/Factory -5/Upper Caves -5/Upper Caves (discovered 2 exits: *Fac / *Zhi) -5/Zhirov -4/Proximity Caves -4/Factory (discovered 4 exits: *Res / Upp x2 / Arm) -4/Waste -4/Factory (discovered 7 exits: *Res x4 / Upp x2 / Arm) -3/Research (discovered 2 exits: *Res x2) -2/Research -2/Testing -1/Access History --------- Turn | Location | Event 32 | -11/Scrapyard | Discovered new exit (range 16) 79 | -11/Scrapyard | Entered Materials 305 | -10/Materials | Build established: Mutant 332 | -10/Materials | Discovered new exit (range 11) 398 | -10/Materials | Discovered new exit (range 5) 870 | -10/Materials | Discovered new exit (range 16) 986 | -10/Materials | Discovered new exit (range 10) 1229 | -10/Materials | Identified exit to Mines 1547 | -10/Materials | Entered Mines 1698 | -10/Mines | Deemed a non-threat by the Exiles lab entrance 1698 | -10/Mines | Discovered new exit (range 5) 1704 | -10/Mines | Entered Exiles 1748 | -10/Exiles | Met 8R-AWN 1775 | -10/Exiles | Met EX-HEX 1824 | -10/Exiles | Met EX-BIN 1842 | -10/Exiles | Aligned with FarCom system 1843 | -10/Exiles | Given EX-Vault access code 1880 | -10/Exiles | Opened EX-Vault 1890 | -10/Exiles | Found Longsword +1 1965 | -10/Exiles | Warned to stay clear of 0b10 Research branches 2006 | -10/Exiles | Met EX-DEC 2061 | -10/Exiles | Discovered new exit (range 14) 2080 | -10/Exiles | Left Exiles lab with Longsword +1 2080 | -10/Exiles | Entered Mines 2105 | -9/Mines | Met a Derelict bent on vengeance 2125 | -9/Mines | Learned location of Storage (-9) 2132 | -9/Mines | Discovered new exit (range 7) 2141 | -9/Mines | Entered Materials 2141 | -8/Materials | Evolved 4 slots: Propulsion x2, Utility x2 2902 | -8/Materials | Build established: Scavenger-Mutant 3175 | -8/Materials | Discovered new exit (range 16) 3481 | -8/Materials | Discovered new exit (range 12) 4476 | -8/Materials | Build established: Mutant 4942 | -8/Materials | Entered Factory 4942 | -7/Factory | Evolved 2 slots: Utility x2 5154 | -7/Factory | Discovered new exit (range 14) 5303 | -7/Factory | Build established: Hacker-Scout 5464 | -7/Factory | Repaired Broken Cld. VTOL Module? 6200 | -7/Factory | Garrison activated, responded to threat 6327 | -7/Factory | Fabricated Cld. VTOL Module? 6333 | -7/Factory | Fabricated Cld. VTOL Module? 6459 | -7/Factory | Central database locked down 6476 | -7/Factory | Fabricated Cld. VTOL Module? 6515 | -7/Factory | Repaired Mic. Nuclear Core 6522 | -7/Factory | Fabricated Cld. VTOL Module? 6631 | -7/Factory | Discovered new exit (range 16) 6724 | -7/Factory | Discovered new exit (range 16) 6942 | -7/Factory | Search patrols dispatched 6975 | -7/Factory | Identified exit to Lower Caves 7290 | -7/Factory | Build established: Hacker-Sprinter 7342 | -7/Factory | Search patrols dispatched 7356 | -7/Factory | Entered another Factory area 7356 | -6/Factory | Evolved 2 slots: Propulsion x1, Utility x1 7622 | -6/Factory | Discovered new exit (range 7) 7634 | -6/Factory | Build established: Hacker-Scout 7765 | -6/Factory | Repaired Mic. Nuclear Core 7941 | -6/Factory | Repaired Cld. VTOL Module 8127 | -6/Factory | Discovered new exit (range 16) 8134 | -6/Factory | Fabricated Mic. Fission Core (x2) 8171 | -6/Factory | Discovered new exit (range 12) 8333 | -6/Factory | Central database locked down 8568 | -6/Factory | Entered Lower Caves 8658 | -6/Lower Caves | Identified exit to Lower Caves 8724 | -6/Lower Caves | Entered another Lower Caves area 8792 | -6/Lower Caves | Learned Factory terminal intel 9029 | -6/Lower Caves | Discovered new exit (range 14) 9034 | -6/Lower Caves | Entered Data Miner 9034 | -6/Data Miner | Discovered new exit (range 6) 9039 | -6/Data Miner | Met Data Miner 9043 | -6/Data Miner | Learned location of Section 7 (-3) 9043 | -6/Data Miner | Acquired the access code to Warlord's prototype stash 9048 | -6/Data Miner | Received God Mode back door access code from Data Miner 9055 | -6/Data Miner | Entered Proximity Caves 9250 | -5/Proximity Caves | Learned Factory terminal intel 9255 | -5/Proximity Caves | Learned 4 Factory zone layouts 9284 | -5/Proximity Caves | Acquired the password to a Derelict Tinkerer's latest research 9286 | -5/Proximity Caves | Found Prototype Special Weapon 9286 | -5/Proximity Caves | Identified Molecular Deconstructor 9602 | -5/Proximity Caves | Caught by Unaware searching for contraband prototypes 9742 | -5/Proximity Caves | Caught by Unaware searching for contraband prototypes 10072 | -5/Proximity Caves | Discovered new exit (range 7) 10080 | -5/Proximity Caves | Entered Factory 10080 | -5/Factory | Evolved 2 slots: Power x1, Utility x1 10081 | -5/Factory | Identified exit to Extension 10082 | -5/Factory | Identified exit to Factory 10083 | -5/Factory | Loaded intel: 27 terminal locations 10452 | -5/Factory | Repaired Adv. Sensor Array? 10504 | -5/Factory | Lost 4 parts (2p2n) 10537 | -5/Factory | Mak. Hacking Suite fried by hacking feedback 10537 | -5/Factory | Hacking Suite fried by hacking feedback 10677 | -5/Factory | Repaired Broken Cld. VTOL Module 10683 | -5/Factory | Discovered exit to Factory (range 9) 10865 | -5/Factory | Fabricated Cld. VTOL Module? 10987 | -5/Factory | Fabricated Cld. VTOL Module? 11395 | -5/Factory | Discovered exit to Factory (range 10) 11499 | -5/Factory | Fabricated Q-thruster? 11519 | -5/Factory | Repaired Imp. Propulsion Shielding 11546 | -5/Factory | Repaired Lrn. Missile Launcher+ 11765 | -5/Factory | Fabricated Q-thruster? 12040 | -5/Factory | Central database locked down 12096 | -5/Factory | Discovered new exit (range 15) 12180 | -5/Factory | Search patrols dispatched 12327 | -5/Factory | Sucked down chute 12327 | -5/Factory | Entered Waste 12334 | -5/Waste | Spotted C-40 Crusher 12339 | -5/Waste | Spotted C-40 Crusher 12339 | -5/Waste | Spotted C-40 Crusher 12342 | -5/Waste | EMP discharged 12342 | -5/Waste | System corruption reached 10% 12399 | -5/Waste | Spotted C-40 Crusher 12405 | -5/Waste | Spotted C-40 Crusher 12406 | -5/Waste | Spotted C-40 Crusher 12409 | -5/Waste | Discovered new exit (range 16) 12413 | -5/Waste | Entered Factory 12414 | -5/Factory | Loaded intel: 28 terminal locations 12449 | -5/Factory | Discovered new exit (range 16) 12671 | -5/Factory | Entered Upper Caves 12683 | -5/Upper Caves | Learned Factory terminal intel 12726 | -5/Upper Caves | Discovered new exit (range 8) 12727 | -5/Upper Caves | Identified exit to Upper Caves 12727 | -5/Upper Caves | Entered another Upper Caves area 12747 | -5/Upper Caves | Discovered exit to Factory (range 6) 13205 | -5/Upper Caves | Learned Factory stockpile data 13225 | -5/Upper Caves | Discovered new exit (range 5) 13226 | -5/Upper Caves | Identified exit to Zhirov 13227 | -5/Upper Caves | Entered Zhirov 13227 | -5/Zhirov | Discovered new exit (range 3) 13232 | -5/Zhirov | Met Zhirov 13237 | -5/Zhirov | Learned location of Quarantine (-3) 13237 | -5/Zhirov | Learned location of Testing (-2) 13237 | -5/Zhirov | Learned location of Command (-1) 13242 | -5/Zhirov | Zhirov requested help retrieving the SGEMP Prototype 13247 | -5/Zhirov | Found Alien Artifact 13247 | -5/Zhirov | Identified Integrated Dissipator 13247 | -5/Zhirov | Installed Integrated Dissipator, increased core heat dissipation (+20) 13251 | -5/Zhirov | Found Alien Artifact 13251 | -5/Zhirov | Identified Transdimensional Reconstructor 13251 | -5/Zhirov | Warped through subspace 13304 | -5/Zhirov | Identified exit to Proximity Caves 13304 | -5/Zhirov | Entered Proximity Caves 13337 | -4/Proximity Caves | Learned location of 1 exit from Research 13449 | -4/Proximity Caves | Spotted B-86 Titan 13498 | -4/Proximity Caves | Spotter reported a threat 13593 | -4/Proximity Caves | Discovered exit to Factory (range 13) 13595 | -4/Proximity Caves | Learned Research garrison access intel 13601 | -4/Proximity Caves | Entered Factory 13601 | -4/Factory | Evolved 2 slots: Utility x2 13603 | -4/Factory | Loaded intel: 26 terminal locations 13652 | -4/Factory | Repaired Q-thruster 13809 | -4/Factory | Central database locked down 13821 | -4/Factory | Lost 4 allies 13829 | -4/Factory | Fabricated Adv. Hacking Suite? 13843 | -4/Factory | Identified exit to Upper Caves 13843 | -4/Factory | Identified exit to Armory 14057 | -4/Factory | Discovered new exit (range 16) 14169 | -4/Factory | Identified exit to Research 14183 | -4/Factory | Sucked down chute 14183 | -4/Factory | Entered Waste 14187 | -4/Waste | Spotted C-40 Crusher 14189 | -4/Waste | Spotted C-40 Crusher 14193 | -4/Waste | Spotted C-40 Crusher 14196 | -4/Waste | Spotted C-40 Crusher 14197 | -4/Waste | Spotted C-40 Crusher 14198 | -4/Waste | EMP discharged 14201 | -4/Waste | Spotted C-40 Crusher 14202 | -4/Waste | Discovered new exit (range 14) 14206 | -4/Waste | Identified exit to Factory 14206 | -4/Waste | Entered Factory 14350 | -4/Factory | Incoming investigation squad redirected 14555 | -4/Factory | Repaired Lrn. Sensor Array? 14687 | -4/Factory | Repaired Broken Adv. Surge Thruster+ 14758 | -4/Factory | Repaired Cld. VTOL Module 14810 | -4/Factory | Repaired Lrn. Missile Launcher+? 14883 | -4/Factory | Repaired Cld. VTOL Module 14952 | -4/Factory | Repaired Q-thruster+ 15009 | -4/Factory | Garrison activated, responded to threat 15039 | -4/Factory | Repaired Mic. Fission Core+? 15190 | -4/Factory | Found Prototype Processor 15190 | -4/Factory | Identified Exp. Signal Interpreter 15253 | -4/Factory | Build established: Wizard-Ninja 15293 | -4/Factory | Fabricated Exp. Propulsion Shielding? 15319 | -4/Factory | Unchained authorized (6S-H0T) 15362 | -4/Factory | Entered Research 15362 | -3/Research | Evolved 2 slots: Utility x2 15363 | -3/Research | Identified exit to Research 15364 | -3/Research | Loaded intel: 4 garrison access locations 15478 | -3/Research | Found Prototype Device 15478 | -3/Research | Identified Adv. Kinecellerator 15551 | -3/Research | Fabricated Exp. Propulsion Shielding? 15556 | -3/Research | Fabricated Adv. System Shield? 15560 | -3/Research | Unchained authorized (6S-H0T) 15746 | -3/Research | Lost 6 parts (2p1n2u1w) 15760 | -3/Research | Imp. System Shield fried by hacking feedback 15876 | -3/Research | Incoming investigation squad redirected 15906 | -3/Research | Lost 3 allies 15917 | -3/Research | Discovered exit to Research (range 9) 15960 | -3/Research | Core integrity fell below 50% 15968 | -3/Research | Entered another Research area 15968 | -2/Research | Evolved 2 slots: Propulsion x1, Utility x1 15990 | -2/Research | Lost 16 parts (1p5n6u4w) 16027 | -2/Research | Discovered new exit (range 12) 16050 | -2/Research | Identified exit to Testing 16060 | -2/Research | Entered Testing 16061 | -2/Testing | Maximum security lockdown engaged 16130 | -2/Testing | Found Prototype Processor 16130 | -2/Testing | Identified Exp. Core Analyzer 16139 | -2/Testing | Found Prototype Device 16139 | -2/Testing | Identified Exp. Phase Shifter 16428 | -2/Testing | Found Prototype Launcher 16499 | -2/Testing | Found Prototype Device 16499 | -2/Testing | Identified 2N-1CE's Frost Array 16553 | -2/Testing | Found Prototype Device 16553 | -2/Testing | Identified AEGIS Remote Shield 16648 | -2/Testing | Crushed by falling debris 16689 | -2/Testing | Crushed by falling debris 16704 | -2/Testing | Crushed by falling debris 16704 | -2/Testing | System corruption reached 10% 16729 | -2/Testing | Crushed by falling debris 16741 | -2/Testing | Crushed by falling debris 16746 | -2/Testing | Build established: Sprinter 16771 | -2/Testing | Crushed by falling debris 16772 | -2/Testing | Crushed by falling debris 16782 | -2/Testing | Crushed by falling debris 16813 | -2/Testing | Lost 3 parts (3u) 16862 | -2/Testing | Discovered new exit (range 10) 16864 | -2/Testing | Spotted Striker 16867 | -2/Testing | Core integrity fell below 50% 16869 | -2/Testing | Spotted Executioner 16870 | -2/Testing | Spotted Striker 16870 | -2/Testing | Spotted Striker 16870 | -2/Testing | Spotted Executioner 16871 | -2/Testing | Core integrity fell below 20% 16871 | -2/Testing | Spotted Striker 16871 | -2/Testing | Spotted Executioner 16871 | -2/Testing | Entered Access 16871 | -1/Access | Evolved 2 slots: Utility x2 16901 | -1/Access | Identified Ragnarok Missile Launcher 17102 | -1/Access | Found Prototype Device 17102 | -1/Access | Identified Exp. EM Shield 17121 | -1/Access | First assault squad dispatched 17174 | -1/Access | Build established: Scout 17630 | -1/Access | Incoming investigation squad redirected 17704 | -1/Access | Spotted B-99 Colossus 17831 | -1/Access | Incoming investigation squad redirected 17900 | -1/Access | Incoming assault squad redirected 18202 | -1/Access | Incoming assault squad redirected 18203 | -1/Access | Incoming assault squad redirected 18227 | -1/Access | Crushed by falling debris 18228 | -1/Access | System corruption reached 10% 18244 | -1/Access | Crushed by falling debris 18275 | -1/Access | Lost 10 parts (1p3n6u) 18339 | -1/Access | Crushed by falling debris 18349 | -1/Access | Crushed by falling debris 18380 | -1/Access | Lost 4 parts (1n3u) 18499 | -1/Access | Found Gamma Bomb Array 18505 | -1/Access | Core integrity fell below 50% 18525 | -1/Access | Incoming assault squad redirected 18525 | -1/Access | Core integrity fell below 20% 18557 | -1/Access | System corruption reached 30% 18565 | -1/Access | Destroyed by S-43 Plague with Heavy Machine Gun Last Messages --------------- Adv. Sensor Array tumbles out of TF Node. Adv. Signal Interpreter tumbles out of TF Node. Slug penetrates Wall. K-01 Serf collects debris. ALERT: Potential suspicious activity detected, Programmers report to Access Zone 8X. K-01 Serf cleans the Sealed Freight Elevator. ALERT: Higher priority target reported, redirecting assault. Penetrated by Slug. S &FF#&UAQT1AMCBPM&X3FQRE Graphene Brace destroyed. K-01 Serf collects debris. System corrupted: Energy discharge (-48). Acquired Q-thruster+. Q-thruster+ destroyed. [Achievement: Just Browsing] [Achievement: Achiever] Map ----- +----------------------------------------------------+ | ????????????????????? ? | | ????????????????????+ | | ????????????????????# "" | | ????????????????????# "" | | ????????????????????# | | ????????????????????# | | ????????????????????# | | ????????????????????# | | ????????????????????# | | ???????????????###### | | ??############## | | ??# # | | ??# # | | ??# !! # | | ??# ![ # | | ??# ![ # | | ??# / | | ??# # | | ??# # ! | | ??# p # | | ??# sp #######+### # | | ??# psp #???? # # | | ??# ss p #?? # # | | ??###p########## + # | | ????## s #?????# # | | ?????##@#??????# # # | | ??????###??????# # # | | ???????????????# ""T"" ####### | | ???????????????# """"" #?????? | | ???????????????###########?????? | | ???????????????????????????????? | | ???????????????????????????????? | | ???????????????????????????????? | | ???????????????????????????????? | | ???????????????????????????????? | | ???????????????????????????????? | | ???????????????????????????????? | | ???????????????????????????????? | | ???????????????????????????????? | | ???????????????????????????????? | | ???????????????????????????????? | | ???????????????????????????????? | | ???????????????????????????##### | | ????????????????????????#### | | ????????????????#########"#" ### | | ????????????????# # # #?? | | ???????????????## ### ### | | ??????????????##" # # | | ??????????????# # # # | | ??????????????### !! / " # | +----------------------------------------------------+ Best States ------------- Heat Dissipation 169 Energy Generation 47 Energy Capacity 700 Matter Stores 300 Matter Capacity 300 Sight Range 16 Robot Scan Range 18 Terrain Scan Range 20 Terrain Scan Density 210 Jamming Range 16 Power Amplification 30 Additional Mass Support 9 Armor Coverage 300 Core Shielding 40 Propulsion Shielding 66 Utility Shielding 33 Evasion (%) 65 Targeting Accuracy 5 Melee Accuracy 6 Core Analysis 8 Recoil Reduction 4 Salvage Targeting 1 Offensive Hacking 54 Defensive Hacking 26 Item Schematics ----------------- Utility Shielding | -8/Materials | Scanalyzed Hacking Suite | -8/Materials | Scanalyzed Aerolev Unit | -8/Materials | Scanalyzed Cld. VTOL Module | -7/Factory | Scanalyzed System Shield | -7/Factory | Scanalyzed Lgt. Deuterium Engine | -7/Factory | Scanalyzed Mic. Fission Core | -6/Factory | Hacked Imp. Propulsion Shielding | -6/Factory | Scanalyzed Lrn. Missile Launcher | -6/Factory | Scanalyzed Combat Drone Bay | -6/Data Miner | Free Lgt. Regenerative Plating | -6/Data Miner | Free Imp. Force Field | -6/Data Miner | Free Enh. Flexi-carbon Leg | -6/Data Miner | Free Adv. EM Disruption Field | -6/Data Miner | Free Mni. Smartbomb Launcher | -6/Data Miner | Free Imp. Gyrokinetic Inverter | -6/Data Miner | Free Railgun | -6/Data Miner | Free Adv. Terrain Scan Processor | -5/Factory | Scanalyzed Q-thruster | -5/Factory | Hacked Adv. Hacking Suite | -5/Factory | Scanalyzed Assault Drone Bay | -5/Zhirov | Free Exp. Heat Sink | -5/Zhirov | Free Exp. Optical Array | -5/Zhirov | Free Imp. Arc Thrower | -5/Zhirov | Free Adv. System Shield | -4/Factory | Scanalyzed Adv. Surge Thruster | -4/Factory | Scanalyzed Lrn. Sensor Array | -4/Factory | Scanalyzed Exp. Cesium-ion Thruster | -4/Factory | Hacked Exp. Propulsion Shielding | -4/Factory | Hacked Exp. Utility Shielding | -4/Factory | Hacked Cld. Cesium-ion Thruster | -4/Factory | Hacked Robot Schematics ------------------ S-27 Virus | -6/Data Miner | Free B-60 Warrior | -6/Data Miner | Free A-15 Conveyor | -6/Data Miner | Free Y-64 Sentinel | -6/Data Miner | Free M-36 Artificer | -6/Data Miner | Free L-61 Swordsman | -6/Data Miner | Free W-44 Eye | -6/Data Miner | Free G-67 Veteran | -6/Data Miner | Free Fabricated ------------ Cld. VTOL Module | x1 | -7/Factory Cld. VTOL Module | x1 | -7/Factory Cld. VTOL Module | x1 | -7/Factory Cld. VTOL Module | x1 | -7/Factory Mic. Fission Core | x2 | -6/Factory Cld. VTOL Module | x1 | -5/Factory Cld. VTOL Module | x1 | -5/Factory Q-thruster | x2 | -5/Factory Q-thruster | x2 | -5/Factory Adv. Hacking Suite | x1 | -4/Factory Exp. Propulsion Shielding | x1 | -4/Factory Exp. Propulsion Shielding | x1 | -3/Research Adv. System Shield | x1 | -3/Research Repaired ---------- Cld. VTOL Module | 99% | -7/Factory | Broken Mic. Nuclear Core | 78% | -7/Factory Mic. Nuclear Core | 32% | -6/Factory Cld. VTOL Module | 61% | -6/Factory Adv. Sensor Array | 37% | -5/Factory Cld. VTOL Module | 58% | -5/Factory | Broken Imp. Propulsion Shielding | 87% | -5/Factory Lrn. Missile Launcher | 80% | -5/Factory Q-thruster | 25% | -4/Factory Lrn. Sensor Array | 3% | -4/Factory Adv. Surge Thruster | 99% | -4/Factory | Broken Cld. VTOL Module | 43% | -4/Factory Lrn. Missile Launcher | 47% | -4/Factory Cld. VTOL Module | 68% | -4/Factory Q-thruster | 52% | -4/Factory Mic. Fission Core | 71% | -4/Factory Studied --------- Lgt. Treads | -8/Materials | Hacked Lgt. Deuterium Engine | -8/Materials | Hacked Gravmag System | -7/Factory | Hacked Hvy. Missile Launcher | -7/Factory | Hacked Mic. Fission Core | -5/Factory | Hacked Field Propulsion Drive | -5/Factory | Hacked Lrn. Missile Launcher | -5/Factory | Hacked Adv. Surge Thruster | -4/Factory | Hacked Q-thruster | -4/Factory | Hacked Lgt. Quantum Reactor | -1/Access | Hacked Alien Tech Used ----------------- Integrated Dissipator Transdimensional Reconstructor Achievements -------------- Achiever Alien Tech Armchair Analyst Denied? For Science! I Laugh At Your Crits Insider Info Just Browsing Look Less Dangerous Next Time No Signal Not Today, Chutes Subspace Traveler The Science Guy Treasure Hunter Challenges ------------ None Game ------ Seed MatterGrapheneJets Manual? 0 Play Time 04:57:14 Cumulative 24.2 hours Start 2026.01.13 @ 20:26:00 End 2026.01.15 @ 14:38:52 Sessions 9 Manual Loads 0 Difficulty Rogue Special Mode None Game No. 26 Rogue 26 Adventurer 0 Explorer 0 Win Type - Total 0 Types 0/0/0/0/0/0/0/0/0/0 Lore% 13 Gallery% 27 Achievement% 27 Wizard Run 0 Options --------- Layout 1 ASCII 0 Keyboard 1 Movement Vi Keybinds 0 Fullscreen 1 Font 24/Smallcaps Map View 50x40 Zoom Use 0% Tactical HUD 0 Map Filters NONE Filters NONE Steam 1 RUN: 933b4374-a573-45dc-abd7-8d556e9fe89f